bitfinex-derivatives/quotes_ETHF0:USTF0_20241207
["timestamp","ask_amount","ask_price","bid_price","bid_amount"]
[1733529779394,0.24979,3996.6,3996.2,0.24994501]
[1733529779598,0.24979,3996.6,3996.3,0.2498]
[1733529779900,0.24977,3996.9,3996.6,0.24978]
[1733529780096,0.24974,3997.3,3996.5,0.24979]
[1733529780301,3.2078,3997.4,3996.2,0.24994501]
[1733529780595,3.2078,3997.4,3996.3,0.2498]
[1733529780596,0.24978,3996.6,3996.3,0.2498]
[1733529780799,0.24978,3996.6,3996.4,0.24979]
[1733529781194,0.62435,3997.3,3996.2,0.24994501]
[1733529781390,3.2078,3997.0,3996.2,0.24994501]
[1733529782198,3.2078,3997.0,3996.3,0.2498]
[1733529782402,0.24977,3996.8,3996.5,0.24979]
[1733529782602,0.24977,3996.8,3996.2,0.24994501]
[1733529782799,3.2078,3997.0,3996.2,0.24994501]
[1733529783094,0.24978,3996.6,3996.2,0.24994501]
[1733529783299,3.2078,3997.0,3996.2,0.24994501]
[1733529783598,0.24977,3996.8,3996.3,0.2498]
[1733529783792,0.24978,3996.7,3996.2,0.24994501]
[1733529783989,3.2078,3997.0,3996.5,0.24978]
[1733529784595,0.24978,3996.6,3996.4,0.24979]
[1733529784995,3.2078,3997.4,3996.2,0.24994501]
[1733529785397,3.2078,3996.9,3996.2,0.24994501]
[1733529785597,0.6244,3997.0,3996.2,0.24994501]
[1733529785800,0.24979,3996.5,3996.2,0.49974501]
[1733529786097,3.2078,3996.9,3996.2,0.49974501]
[1733529786299,0.2498,3996.3,3996.2,0.24994501]
[1733529787506,3.2078,3996.9,3996.2,0.24994501]
[1733529787697,0.2498,3996.3,3996.2,0.24994501]
[1733529787898,3.2078,3996.9,3996.2,0.24994501]
[1733529788098,3.2078,3996.9,3996.3,0.24979]
[1733529788405,0.2498,3996.3,3996.2,0.24994501]
[1733529788605,0.24979,3996.5,3996.3,0.24979]
[1733529788802,3.2078,3996.9,3996.2,0.24994501]
[1733529789006,0.24979,3996.5,3996.2,0.49974501]
[1733529789208,0.2498,3996.3,3996.2,0.24994501]
[1733529789403,3.8322,3996.9,3996.2,0.24994501]
[1733529789705,3.2078,3996.9,3996.3,0.2498]
[1733529789900,0.2498,3996.3,3996.2,0.24994501]
[1733529790102,0.2001,3996.8,3996.2,0.49974501]
[1733529790408,0.24979,3996.4,3996.2,1.34774501]
[1733529790608,0.2001,3996.8,3996.2,1.09794501]
[1733529791001,0.24979,3996.4,3996.2,0.49974501]
[1733529791208,0.2498,3996.3,3996.2,0.24994501]
[1733529791406,0.2001,3996.8,3996.2,0.24994501]
[1733529791605,3.2078,3996.5,3996.2,0.24994501]
[1733529791903,3.2078,3996.5,3996.1,0.3885]
[1733529792202,0.2498,3996.2,3996.1,0.3885]
[1733529792508,0.24983,3995.8,3995.7,3.2078]
[1733529792810,3.2078,3996.1,3995.4,0.24985]
[1733529793105,3.2078,3996.1,3995.1,0.3824]
[1733529793106,3.2078,3995.7,3995.1,0.3824]
[1733529793496,3.2078,3996.3,3995.1,0.3824]
[1733529793696,3.2078,3996.2,3995.1,0.3824]
[1733529793901,3.4576,3996.3,3995.9,0.24981]
[1733529794108,0.24981,3996.1,3995.6,0.24984]
[1733529794305,0.24981,3996.1,3995.1,0.3824]
[1733529794306,3.2078,3995.9,3995.1,0.3824]
[1733529794501,0.24991,3994.4,3994.3,3.2078]
[1733529794697,0.24994,3994.1,3993.9,3.2078]
[1733529794908,0.24994,3994.0,3993.9,3.2078]
[1733529795207,3.2078,3994.8,3993.9,3.45778312]
[1733529795408,0.24994,3994.1,3993.9,3.45778312]
[1733529795599,3.2078,3994.8,3993.9,3.45778312]
[1733529795803,3.2078,3994.4,3993.9,0.24998312]
[1733529796003,0.24992,3994.3,3993.9,0.24998312]
[1733529796215,3.2078,3994.4,3993.9,0.24998312]
[1733529796404,0.24993,3994.3,3993.9,0.24998312]
[1733529796598,3.2078,3994.4,3993.9,0.24998312]
[1733529796904,0.3825,3995.0,3993.9,5.24998312]
[1733529796905,3.2078,3995.0,3993.9,5.24998312]
[1733529797109,3.2078,3995.0,3994.4,0.24991]
[1733529797506,3.2078,3995.4,3994.5,3.2078]
[1733529797804,3.2078,3995.4,3994.6,1.01446]
[1733529798203,3.2078,3995.4,3995.3,0.24986]
[1733529798407,3.2078,3995.9,3995.0,4.0558]
[1733529798605,3.2078,3996.3,3995.4,3.2078]
[1733529798904,3.2078,3995.9,3994.8,0.873]
[1733529799100,0.24988,3994.9,3994.5,0.3897]
[1733529799302,3.2078,3995.5,3994.5,0.3897]
[1733529799598,3.2078,3994.6,3993.6,3.2078]
[1733529799804,3.2078,3994.6,3994.5,0.24991]
[1733529800007,0.873,3995.6,3994.5,0.24991]
[1733529800008,0.2001,3996.8,3994.5,9.0808]
[1733529800316,3.2078,3996.5,3995.2,0.62466]
[1733529800507,3.2078,3996.5,3995.9,0.24982]
[1733529800711,3.2078,3996.6,3995.5,3.2078]
[1733529801203,0.3836,3996.7,3996.0,3.2078]
[1733529801400,0.24979,3996.5,3995.8,0.24982]
[1733529801609,3.2078,3996.6,3995.7,3.2078]
[1733529802105,0.3836,3996.7,3996.1,3.4576]
[1733529802404,0.3836,3996.7,3996.3,0.24979]
[1733529802605,0.3836,3996.7,3996.6,0.24978]
[1733529802912,0.3836,3996.7,3996.5,3.2078]
[1733529802913,0.3836,3996.7,3996.5,3.45758]
[1733529803105,0.3836,3996.7,3996.6,0.24978]
[1733529803300,0.2001,3996.8,3996.7,0.24977]
[1733529803509,0.2001,3996.8,3996.7,3.45757]
[1733529809410,0.4001,3998.0,3997.1,0.62436]
[1733529809609,0.4001,3998.0,3997.8,0.2497]
[1733529809912,0.4001,3998.0,3997.7,0.2497]
[1733529810108,0.4001,3998.0,3997.2,3.2078]
[1733529811113,3.6079,3998.0,3997.2,3.2078]
[1733529811308,0.2001,3997.9,3997.2,3.2078]
[1733529811510,0.2001,3997.9,3997.8,0.2497]
[1733529811917,0.2496,3999.4,3998.7,0.24964]
[1733529812216,0.3993,3998.8,3998.7,0.24965]
[1733529813015,0.3993,3998.8,3998.6,3.2078]
[1733529813016,0.3993,3998.8,3998.6,0.24965]
[1733529813612,0.5993,3998.8,3998.6,0.24965]
[1733529814218,0.5993,3998.8,3998.2,3.2078]
[1733529814410,0.5993,3998.8,3998.3,0.24967]
[1733529814720,0.5993,3998.8,3998.2,3.2078]
[1733529814721,0.5993,3998.8,3998.7,0.24965]
[1733529816215,0.2,3998.8,3998.7,0.24965]
[1733529816718,0.3938,3999.5,3999.4,0.2496]
[1733529817115,3.2078,4000.1,4000.0,0.24957]
[1733529817314,0.7965,4000.2,4000.1,0.24956]
[1733529817618,0.4027,4000.9,3999.5,4.0808]
[1733529817813,3.2078,4001.3,4000.4,3.2078]
[1733529818118,0.24949,4001.2,4000.4,3.2078]
[1733529818422,0.2495,4001.0,4000.1,0.24956]
[1733529818714,0.2495,4001.0,3999.0,0.3788]
[1733529818715,0.24954,4000.4,3999.5,0.2496]
[1733529818913,3.6016,4000.3,3999.2,3.2078]
[1733529819112,0.4112,4000.2,3999.2,3.2078]
[1733529819508,0.24959,3999.7,3999.2,3.2078]
[1733529819709,5.4112,4000.2,3998.4,3.2078]
[1733529819710,3.2078,3999.5,3998.4,3.2078]
[1733529820014,3.2078,3999.5,3999.0,0.24962]
[1733529820214,3.2078,3999.6,3998.8,3.2078]
[1733529820519,3.2078,3999.6,3998.8,3.45744]
[1733529820723,3.45739,3999.6,3998.8,3.2078]
[1733529821117,3.2078,3999.6,3998.8,3.2078]
[1733529821616,3.2078,3999.6,3998.8,3.45744]
[1733529821814,3.2078,3999.6,3999.2,0.24961]
[1733529822017,3.2078,4000.1,3999.2,3.2078]
[1733529822215,0.4112,4000.2,3999.5,0.24959]
[1733529822517,0.4112,4000.2,3999.6,3.45739]
[1733529822720,0.4112,4000.2,3999.2,3.2078]
[1733529822921,0.4112,4000.2,3999.6,3.2078]
[1733529823113,0.3938,4000.3,4000.0,0.24956]
[1733529823316,0.3938,4000.3,3999.8,0.24957]
[1733529824218,0.3938,4000.3,3999.6,3.2078]
[1733529824219,0.3938,4000.3,3999.7,0.24958]
[1733529824613,0.3938,4000.3,3999.6,3.2078]
[1733529824918,0.3938,4000.3,3999.7,0.24958]
[1733529825817,0.3938,4000.3,3999.1,4.4013]
[1733529826118,0.3938,4000.3,3999.3,0.2496]
[1733529826316,0.24956,4000.2,3999.3,0.2496]
[1733529826512,0.3938,4000.3,3999.4,0.2496]
[1733529826718,0.24955,4000.2,3999.4,0.2496]
[1733529827016,3.45736,4000.1,3999.4,0.2496]
[1733529827219,0.24957,4000.0,3999.2,0.24961]
[1733529827420,0.24957,4000.0,3999.3,0.24961]
[1733529827916,0.3938,4000.3,3999.1,4.4013]
[1733529828217,0.922,4000.8,4000.0,0.24956]
[1733529828218,0.24952,4000.7,4000.0,0.24956]
[1733529828421,0.922,4000.8,4000.1,0.24955]
[1733529828422,0.24952,4000.8,4000.1,0.24955]
[1733529828626,0.4081,4000.9,4000.3,0.24955]
[1733529828817,0.4081,4000.9,4000.5,0.24954]
[1733529829116,0.4081,4000.9,4000.0,1.1894]
[1733529829323,0.1999,4001.1,4001.0,0.24951]
[1733529830915,0.1999,4001.1,4001.0,1.04931]
[1733529831731,0.3802,4002.3,4001.6,0.24947]
[1733529831732,0.24943,4002.2,4001.6,0.24947]
[1733529832028,0.24943,4002.2,4001.6,3.45727]
[1733529832319,0.4099,4002.5,4001.6,3.2078]
[1733529832516,3.2078,4002.8,4001.6,3.2078]
[1733529832717,3.2078,4002.8,4002.1,3.2078]
[1733529832718,0.2494,4002.7,4002.1,3.2078]
[1733529832923,0.24941,4002.6,4002.1,3.2078]
[1733529833419,0.1998,4002.5,4002.1,3.2078]
[1733529833928,0.24948,4001.6,4001.0,1.9713]
[1733529834223,0.2495,4001.2,4000.9,3.2078]
[1733529834621,0.24947,4001.6,4000.9,3.2078]
[1733529834920,3.2078,4001.8,4000.9,3.2078]
[1733529835124,3.5994,4002.4,4001.0,0.4073]
[1733529835314,3.5994,4002.4,4001.8,0.24946]
[1733529835514,3.84883,4002.4,4001.8,0.24946]
[1733529835826,3.84883,4002.4,4001.4,4.1298]
[1733529836020,3.5994,4002.4,4001.4,4.1298]
[1733529836231,3.84882,4002.4,4001.5,0.377]
[1733529836532,3.84882,4002.4,4001.5,0.62647]
[1733529836533,0.24944,4002.1,4001.5,0.62647]
[1733529836723,0.24944,4002.2,4001.6,0.24947]
[1733529836920,3.84882,4002.4,4001.9,0.24945]
[1733529837125,0.24943,4002.3,4001.8,0.24945]
[1733529837422,3.5994,4002.4,4001.8,0.24945]
[1733529837727,0.24943,4002.3,4001.8,0.24945]
[1733529838135,0.24943,4002.3,4001.5,0.377]
[1733529838136,3.5994,4002.4,4002.0,0.24944]
[1733529838329,3.5994,4002.4,4002.1,0.24944]
[1733529838533,3.84882,4002.4,4001.9,0.24945]
[1733529838842,0.24943,4002.3,4001.8,0.24945]
[1733529839029,0.24943,4002.3,4001.8,0.24946]
[1733529839335,0.24943,4002.3,4001.5,0.377]
[1733529839336,3.5994,4002.4,4001.9,0.24945]
[1733529839529,3.5994,4002.4,4002.1,0.24944]
[1733529839735,3.5994,4002.4,4001.5,0.377]
[1733529839941,3.84882,4002.4,4001.6,0.24947]
[1733529840141,0.24942,4002.3,4001.5,0.377]
[1733529840541,3.5994,4002.4,4001.5,0.377]
[1733529840741,0.24942,4002.3,4001.9,0.24945]
[1733529840942,3.5994,4002.4,4001.5,0.377]
[1733529841345,0.24943,4002.3,4001.9,0.24945]
[1733529841635,0.24943,4002.3,4001.5,0.377]
[1733529841636,3.5994,4002.4,4001.5,0.377]
[1733529841842,0.3916,4002.4,4002.3,0.24942]
[1733529842638,0.3916,4002.4,4002.0,0.24944]
[1733529842838,0.3916,4002.4,4001.9,3.2078]
[1733529843033,0.3916,4002.4,4002.2,0.24943]
[1733529843236,0.3916,4002.4,4001.9,3.2078]
[1733529843734,0.1998,4002.5,4001.9,3.2078]
[1733529844032,0.1998,4002.5,4002.4,0.24942]
[1733529845041,0.1998,4002.5,4002.4,3.45722]
[1733529845238,0.1998,4002.5,4002.4,0.24942]
[1733529846143,0.1998,4002.5,4002.0,0.7952]
[1733529846344,0.1998,4002.5,4002.3,0.24942]
[1733529846535,0.1998,4002.5,4002.0,0.7952]
[1733529846536,0.1998,4002.5,4002.4,0.24942]
[1733529849742,0.1998,4002.5,4002.4,3.45722]
[1733529852043,0.1998,4002.5,4002.4,3.2078]
[1733529852245,0.1998,4002.5,4001.6,3.2078]
[1733529852446,0.62357,4002.3,4001.6,3.2078]
[1733529852647,0.24945,4001.9,4001.7,0.24946]
[1733529852841,0.24944,4002.1,4001.8,0.24945]
[1733529853046,0.24943,4002.3,4001.6,3.2078]
[1733529853249,0.23404027,4002.2,4002.1,3.45724]
[1733529853441,0.1998,4002.5,4002.1,3.2078]
[1733529853647,0.1998,4002.5,4002.2,0.24943]
[1733529853648,0.44922,4002.5,4002.2,0.24943]
[1733529854448,0.1998,4002.5,4002.2,0.24943]
[1733529854650,0.1998,4002.5,4002.1,3.2078]
[1733529854845,0.24943,4002.2,4002.1,3.2078]
[1733529855052,0.48346538,4002.2,4002.1,3.2078]
[1733529855254,0.24943,4002.2,4002.1,3.2078]
[1733529855444,0.3999,4002.4,4001.3,0.921]
[1733529855445,0.3999,4002.4,4001.6,3.2078]
[1733529855645,0.24943,4002.2,4001.9,0.24945]
[1733529855848,0.24943,4002.3,4002.0,0.24944]
[1733529856058,0.3999,4002.4,4001.6,3.2078]
[1733529856253,0.64932,4002.4,4002.1,0.24943]
[1733529856453,0.23401863,4002.3,4001.6,3.40315591]
[1733529856753,0.1998,4002.5,4001.6,3.2078]
[1733529856950,0.23402484,4002.4,4002.1,0.24944]
[1733529857150,0.48345484,4002.3,4002.1,0.24944]
[1733529857351,0.23402585,4002.2,4002.1,0.24944]
[1733529857551,0.23402585,4002.2,4001.6,3.2078]
[1733529857859,0.24943,4002.4,4001.7,0.24946]
[1733529858056,0.23401686,4002.3,4002.2,0.24943]
[1733529858253,0.1998,4002.5,4002.2,3.2078]
[1733529858457,0.1998,4002.5,4002.4,0.24942]
[1733529859360,0.1998,4002.5,4002.4,0.65142]
[1733529862665,0.64386,4003.5,4002.5,0.62354]
[1733529862862,0.23394545,4003.4,4003.3,0.24936]
[1733529863359,0.23394545,4003.4,4003.1,3.45717]
[1733529863568,0.23394545,4003.3,4003.1,3.45717]
[1733529864263,0.23394545,4003.3,4003.1,3.2078]
[1733529864462,0.30184545,4003.3,4003.2,0.24937]
[1733529864657,0.30184545,4003.3,4003.1,3.45717]
[1733529864862,0.23394545,4003.2,4003.1,3.45717]
[1733529865759,0.23394545,4003.2,4003.1,3.45718]
[1733529865961,0.23394545,4003.2,4003.1,3.84588]
[1733529867166,0.0679,4003.3,4003.2,0.24937]
[1733529867363,0.0679,4003.3,4003.2,0.64227]
[1733529871170,0.3878,4004.2,4004.1,0.24931]
[1733529871358,0.24928,4004.7,4004.2,0.24931]
[1733529871566,0.2338903,4004.6,4004.1,3.2078]
[1733529871764,0.2338903,4004.5,4004.4,0.24929]
[1733529871963,0.64187,4004.9,4004.6,0.24928]
[1733529872169,0.2338765,4004.8,4004.7,0.24928]
[1733529872365,2.90508263,4005.9,4004.7,3.2078]
[1733529872564,0.63092,4005.7,4005.3,3.2078]
[1733529872764,6.11288263,4006.3,4005.3,3.2078]
[1733529873068,0.2492,4006.0,4005.5,0.24922]
[1733529873265,0.2492,4006.0,4005.3,3.2078]
[1733529873266,0.3817,4006.1,4005.4,0.24923]
[1733529873470,0.24921,4005.9,4005.4,0.24923]
[1733529873775,0.3817,4006.1,4005.3,3.2078]
[1733529873962,0.24921,4005.9,4005.3,3.2078]
[1733529874269,0.24921,4005.9,4005.4,0.24923]
[1733529874477,0.24921,4005.9,4005.5,0.24922]
[1733529874664,0.3817,4006.1,4005.5,0.913]
[1733529875167,0.24921,4005.9,4005.5,1.16222]
[1733529875362,0.24921,4005.9,4005.5,0.913]
[1733529875565,0.3817,4006.1,4005.5,0.913]
[1733529875974,0.2492,4006.0,4005.7,0.24922]
[1733529876177,0.2492,4006.0,4005.6,0.24922]
[1733529876466,0.3817,4006.1,4005.5,0.913]
[1733529876672,0.6309,4006.1,4005.6,0.24923]
[1733529876870,0.3817,4006.1,4005.7,0.24922]
[1733529877066,0.6309,4006.1,4005.7,0.24922]
[1733529878469,0.3817,4006.1,4005.7,0.24922]
[1733529878668,2.90508263,4007.4,4006.0,3.2078]
[1733529878872,0.392,4006.6,4006.0,3.2078]
[1733529879172,0.392,4006.6,4006.0,4.1208]
[1733529879371,0.64117,4006.6,4006.0,4.1208]
[1733529879673,0.24919,4006.3,4006.0,3.2078]
[1733529879871,0.24919,4006.3,4005.7,0.913]
[1733529880176,0.4123,4006.2,4005.7,0.913]
[1733529880372,0.4123,4006.2,4005.7,1.16222]
[1733529880566,0.4123,4006.2,4005.8,0.24922]
[1733529881372,0.392,4006.6,4005.7,0.913]
[1733529881564,0.392,4006.6,4006.3,0.24918]
[1733529881765,3.6061,4007.1,4006.0,3.2078]
[1733529881963,0.3934,4007.0,4006.5,0.24917]
[1733529882169,0.3934,4007.0,4006.0,3.2078]
[1733529882470,0.24911,4007.6,4006.9,0.24915]
[1733529882672,1.04081,4007.6,4007.0,0.24914]
[1733529882870,1.04081,4007.6,4006.9,0.24915]
[1733529883069,0.7917,4007.6,4007.1,0.24913]
[1733529883265,0.7917,4007.6,4007.2,0.24913]
[1733529883465,3.2078,4008.2,4006.7,1.35123779]
[1733529883674,0.24909,4007.9,4007.2,0.24913]
[1733529884071,0.24908,4008.0,4007.4,3.45692]
[1733529884264,3.2078,4008.2,4007.4,3.2078]
[1733529884469,3.45687,4008.2,4007.5,0.913]
[1733529885174,3.45687,4008.2,4007.5,1.16211]
[1733529885379,3.45687,4008.2,4007.5,0.913]
[1733529885772,0.24908,4008.1,4007.5,1.16211]
[1733529886067,3.2078,4008.2,4007.6,0.24911]
[1733529886378,3.2078,4008.2,4007.9,0.24908]
[1733529886675,0.24905,4008.6,4008.0,0.24908]
[1733529886877,0.7853,4009.0,4008.0,0.24908]
[1733529887067,0.24904,4008.8,4008.0,0.24908]
[1733529887373,0.24904,4008.8,4008.2,0.24907]
[1733529887575,0.3829,4009.0,4008.2,0.875]
[1733529887979,0.4048,4008.9,4007.9,3.2078]
[1733529888270,0.24908,4008.1,4007.5,0.24911]
[1733529888475,0.7877,4008.0,4007.5,0.24911]
[1733529888671,3.2078,4008.5,4007.4,4.0828]
[1733529888870,0.3829,4009.1,4007.5,0.3843]
[1733529889176,0.24904,4008.8,4008.2,0.24907]
[1733529889368,0.3829,4009.1,4008.1,0.875]
[1733529889775,0.3829,4009.1,4008.3,0.24906]
[1733529889776,0.24903,4008.9,4008.3,0.24906]
[1733529889976,0.24903,4008.9,4008.1,0.875]
[1733529889977,0.3829,4009.1,4008.1,0.875]
[1733529890172,0.3829,4009.1,4008.5,0.24905]
[1733529890173,0.24902,4009.0,4008.5,0.24905]
[1733529890376,3.2078,4009.3,4008.1,0.875]
[1733529890567,0.24901,4009.2,4008.7,0.24903]
[1733529890773,3.45681,4009.3,4008.8,0.24903]
[1733529890973,3.45681,4009.3,4008.4,3.2078]
[1733529891179,3.2078,4009.3,4008.4,3.2078]
[1733529891479,0.4048,4009.5,4008.4,3.2078]
[1733529891972,0.24902,4009.0,4008.4,3.2078]
[1733529892176,0.3924,4008.9,4008.5,0.24905]
[1733529892376,3.2078,4009.3,4008.4,3.2078]
[1733529892575,0.24902,4009.1,4008.6,0.24904]
[1733529892766,0.24901,4009.2,4008.8,0.24903]
[1733529892966,0.24901,4009.2,4008.7,1.12403]
[1733529893179,3.2078,4009.3,4008.7,0.875]
[1733529893374,3.2078,4009.3,4009.1,0.24901]
[1733529893679,3.2078,4009.3,4009.0,0.24902]
[1733529893873,3.2078,4010.0,4008.7,0.875]
[1733529894082,0.24898,4009.7,4009.3,0.249]
[1733529894272,0.24896,4009.9,4009.4,0.24899]
[1733529894472,0.24898,4009.7,4009.4,0.874]
[1733529894671,3.2078,4010.0,4009.4,0.874]
[1733529894672,3.45676,4010.0,4009.5,0.24899]
[1733529894971,3.6181,4010.5,4009.6,3.5873]
[1733529895174,0.24895,4010.2,4009.7,0.24898]
[1733529895477,0.24896,4010.1,4009.7,0.24898]
[1733529895673,3.2078,4010.5,4009.6,3.5873]
[1733529895882,0.24894,4010.3,4009.9,0.24896]
[1733529896174,0.24895,4010.2,4009.8,1.12297]
[1733529896379,0.4103,4010.8,4009.8,0.874]
[1733529896380,3.6181,4010.8,4009.8,0.874]
[1733529896781,0.24896,4010.0,4009.8,1.12297]
[1733529896972,1.49369,4010.2,4009.1,3.45681]
[1733529897275,0.24899,4009.5,4009.2,0.249]
[1733529897483,0.784,4010.1,4009.1,3.2078]
[1733529897676,0.249,4009.3,4009.1,3.2078]
[1733529897880,0.249,4009.4,4009.2,0.249]
[1733529898179,0.4127,4009.8,4009.1,3.2078]
[1733529898375,0.249,4009.4,4009.1,3.45681]
[1733529898583,0.24901,4009.2,4009.1,3.2078]
[1733529898779,3.6205,4009.8,4009.1,3.2078]
[1733529898976,0.24901,4009.2,4009.1,3.2078]
[1733529899384,0.24901,4009.2,4009.1,3.45681]
[1733529899683,0.24901,4009.2,4009.1,3.2078]
[1733529900178,3.6205,4009.8,4009.1,3.2078]
[1733529901085,0.249,4009.3,4009.2,0.24901]
[1733529901479,0.249,4009.3,4009.1,3.45681]
[1733529901680,0.249,4009.3,4009.0,1.12319199]
[1733529901681,3.2078,4009.2,4008.4,0.24919199]
[1733529901880,0.4004,4009.2,4008.5,4.0818]
[1733529902080,0.24049408,4008.9,4008.6,0.24904]
[1733529902383,0.24049408,4008.9,4008.8,0.24903]
[1733529902982,0.4127,4009.8,4008.5,4.0818]
[1733529903184,0.4127,4009.8,4009.3,0.249]
[1733529903383,0.64937,4009.9,4009.4,0.24899]
[1733529903782,0.64937,4009.9,4009.3,0.24899]
[1733529903783,0.24897,4009.8,4009.3,0.24899]
[1733529904092,0.24895,4010.2,4009.8,0.24897]
[1733529904482,3.2078,4010.4,4009.9,0.874]
[1733529904686,0.62221,4011.3,4010.0,0.874]
[1733529904986,0.4005,4011.2,4010.0,0.874]
[1733529905183,0.24893,4010.5,4010.1,0.62565]
[1733529905375,0.62223,4011.1,4010.2,3.45674]
[1733529905376,0.24889,4011.0,4010.2,3.45674]
[1733529905579,3.2078,4011.4,4010.6,0.24892]
[1733529905782,3.2078,4011.4,4010.7,0.874]
[1733529906082,0.24889,4011.1,4010.7,0.874]
[1733529906290,0.2489,4011.0,4010.7,0.874]
[1733529906485,0.24889,4011.1,4010.7,1.12291]
[1733529906688,3.2078,4011.4,4010.7,0.874]
[1733529906882,0.24889,4011.1,4010.7,0.874]
[1733529907088,0.62214,4011.8,4010.7,0.874]
[1733529907287,0.24889,4011.2,4010.7,0.874]
[1733529907481,0.24889,4011.2,4010.9,0.2489]
[1733529907785,0.62214,4011.7,4010.8,0.24891]
[1733529907992,0.24889,4011.1,4010.8,0.24891]
[1733529908789,3.2078,4010.9,4010.0,0.24910446]
[1733529908988,0.4113,4010.8,4010.0,0.24910446]
[1733529909787,0.24889,4011.1,4010.9,0.2489]
[1733529910084,3.2078,4011.4,4010.5,0.874]
[1733529910280,3.2078,4011.4,4010.0,0.24910446]
[1733529910480,0.24895,4010.2,4010.0,0.49805446]
[1733529910679,3.2078,4010.9,4010.0,0.24910446]
[1733529910883,0.3943,4011.3,4010.9,0.2489]
[1733529911186,0.2489,4011.0,4010.7,0.24891]
[1733529911483,3.2078,4011.1,4010.2,0.24894]
[1733529911683,0.2489,4011.0,4010.7,0.24891]
[1733529912188,3.2078,4011.9,4010.8,3.2078]
[1733529912386,0.24887,4011.4,4011.1,0.24889]
[1733529912590,0.24887,4011.5,4011.2,0.24888]
[1733529912786,0.3762,4011.7,4010.8,0.874]
[1733529912787,0.48238863,4011.4,4011.1,0.24889]
[1733529913087,0.48238863,4011.4,4010.8,0.874]
[1733529913088,0.377,4011.8,4010.9,0.62226]
[1733529913288,0.377,4011.8,4010.8,9.0818]
[1733529913493,0.377,4011.8,4011.7,0.24885]
[1733529914288,0.3762,4012.2,4011.5,0.874]
[1733529914492,0.62502,4012.2,4011.7,0.24885]
[1733529914694,0.62502,4012.2,4011.9,0.24884]
[1733529914892,0.24886,4011.6,4011.3,3.45667]
[1733529915090,0.24889,4011.1,4010.8,1.1229]
[1733529915290,3.2078,4011.4,4010.8,0.874]
[1733529915492,0.23352782,4011.3,4010.9,0.2489]
[1733529915683,0.24888,4011.3,4010.9,0.2489]
[1733529915991,3.2078,4011.4,4010.8,1.12312122]
[1733529916188,0.48239796,4011.3,4011.1,0.24889]
[1733529916492,0.24888,4011.3,4011.1,0.24889]
[1733529916688,3.2078,4011.4,4010.8,1.12312122]
[1733529916995,0.23351553,4011.3,4010.5,0.3937]
[1733529917293,0.24893,4010.5,4010.3,0.24893]
[1733529917685,0.62223,4011.1,4010.2,3.2078]
[1733529917686,0.24894,4010.3,4010.2,3.2078]
[1733529917889,0.24893,4010.4,4010.3,0.24894]
[1733529918391,3.83006,4010.9,4009.9,0.24896]
[1733529918392,0.24896,4010.0,4009.9,0.24896]
[1733529918586,0.3995,4010.3,4009.7,3.2078]
[1733529918786,0.3995,4010.3,4009.2,0.842]
[1733529918787,3.2078,4009.8,4009.2,0.842]
[1733529918987,3.2078,4009.8,4009.2,1.09101]
[1733529918988,0.249,4009.3,4009.2,1.09101]
[1733529919287,3.2078,4009.8,4009.2,0.842]
[1733529919486,0.2336117,4009.7,4009.3,0.249]
[1733529919695,0.23361571,4009.6,4008.9,3.2078]
[1733529919896,0.24901,4009.2,4009.1,0.24901]
[1733529920192,0.24902,4009.1,4009.0,0.24902]
[1733529920395,0.48263571,4009.1,4009.0,0.24902]
[1733529920588,0.23361571,4009.1,4008.8,0.24907965]
[1733529920788,0.23362893,4009.0,4008.4,3.2078]
[1733529921090,0.23363156,4008.9,4008.8,0.24903]
[1733529922690,0.24901,4009.2,4008.8,0.24903]
[1733529922999,0.23363146,4009.1,4008.8,0.24903]
[1733529923192,0.23363146,4009.0,4008.8,0.24903]
[1733529923498,3.2078,4009.3,4008.4,3.45687965]
[1733529923694,0.23362911,4009.2,4008.4,3.45687965]
[1733529923898,0.48264911,4009.1,4008.7,0.24903]
[1733529924194,0.415,4009.2,4008.4,3.45687965]
[1733529924195,0.23362911,4009.0,4008.4,3.45687965]
[1733529924494,2.89092601,4010.8,4009.7,0.24897]
[1733529924495,0.24895,4010.1,4009.7,0.24897]
[1733529924690,0.24895,4010.2,4009.7,0.24897]
[1733529924890,0.23357737,4010.1,4009.5,0.842]
[1733529925089,3.2078,4010.5,4009.5,0.842]
[1733529925090,0.23358375,4010.0,4009.5,0.842]
[1733529925291,3.2078,4010.5,4009.5,0.842]
[1733529925500,3.2078,4010.5,4009.6,0.24898]
[1733529925501,0.24895,4010.1,4009.6,0.24898]
[1733529925697,3.2078,4010.5,4009.6,0.24898]
[1733529925894,0.24894,4010.3,4009.6,0.24898]
[1733529926197,0.23358321,4010.2,4009.6,0.24898]
[1733529926394,3.2078,4010.5,4009.6,0.24898]
[1733529926395,0.24896,4010.0,4009.6,0.24898]
[1733529926697,1.93872391,4009.8,4009.1,0.4135]
[1733529926908,0.249,4009.4,4009.1,0.66251]
[1733529927197,0.249,4009.4,4008.8,3.2078]
[1733529927198,0.24902,4009.1,4008.8,0.24903]
[1733529927392,0.24902,4009.1,4008.5,0.842]
[1733529927393,1.93872391,4009.4,4008.7,0.24903]
[1733529927595,0.24902,4009.0,4008.4,1.09107965]
[1733529927794,0.24901,4009.1,4008.4,1.09107965]
[1733529928004,0.24901,4009.1,4008.8,0.24903]
[1733529928390,5.14652391,4009.4,4008.4,1.09107965]